{"text_format":"1","workbook":"xlsx","n_sheets":4,"sheets":["Základní údaje","Rozpis úklidu","Karty úklidu","Činnosti úklidu"],"not_rendered":{"charts":0,"images":0,"macros":1,"external_links":0,"defined_names":3,"comments":3,"pivot_tables":0},"unopened":[],"bounds":{"document_bytes":16777216,"sheet_cells":100000,"rows_first":2000,"rows_last":500,"rows_between":2000,"halvings":0,"cell_chars":16384,"cell_head_chars":4096},"cells_cut":0,"cells_raw":0,"read":"whole","date_system":"1900"}

{"sheet":"Základní údaje","index":0,"n_rows":15,"n_cols":8,"rows_kept":15,"cut":false,"hidden":false,"merged":[[8,3,8,6],[1,0,1,1]]}
["kolej: Vltava, VŠE"]
["OBDOBÍ:"]
["2020-05-01","2024-04-30"]
["Identifikace subjektu podávajícího nabídku:"]
["Název subjektu:"]
["IČ:"]
["Sídlo:"]
["Zapsaná v:"]
[null,null,null,"Předpoklad roční inflace"]
[null,null,null,"1. rok","2. rok","3. rok","4. rok"]
["CENA pracovní dny [Kč/hodinu/člověka]:",0,{"$f":"IF(B11<>0,B12/B11,0)","v":0},0,0,0,0]
["CENA víkendy [Kč/hodinu/člověka]:",0,{"$f":"IF(B11<>0,(5*B11+2*B12)/7/B11,0)","v":0},1,{"$f":"1+E11","v":1},{"$f":"1+F11","v":1},1]
[null,null,null,1,{"$f":"+D13*E12","v":1},{"$f":"+E13*F12","v":1},1,{"$f":"SUM(D13:G13)/4","v":1}]
[]
["CENA CELKEM ZA ZAKÁZKU:",{"$f":"'Rozpis úklidu'!B73:D73","v":0}]

{"sheet":"Rozpis úklidu","index":1,"n_rows":144,"n_cols":19,"rows_kept":144,"cut":false,"hidden":false,"merged":[[72,1,72,3]]}
[{"$f":"'Základní údaje'!A1","v":"kolej: Vltava, VŠE"},{"$f":"'Základní údaje'!A2","v":"OBDOBÍ:"},{"$f":"'Základní údaje'!A3","v":"2020-05-01"},{"$f":"'Základní údaje'!B3","v":"2024-04-30"}]
["Cena za 1 úklidovou hodinu:",{"$f":"'Základní údaje'!B11","v":0},"Kč/hod."]
["Úklidová jednotka","plocha\n[m²]","kusy\n[-]","počet\núklidových jednotek","CELKEM\n[m²]\n[ks]","uklízí se","počet úklidů","sezonní\ntýden\nod","sezonní\ntýden\ndo","uklízí se v\npracovní dny","uklízí se o\nvíkendech","Popis činnosti","Zadavatelem doporučený čas na úklidovou jednotku\n[min]","Uchazečem navrhovaný čas na úklidovou jednotku\n[min.]","celkový čas úklidu všech úklidových jednotek\n[hod.]","Cena za úklidovou jednotku\n[Kč]","cena celkem za všechny úklidové jednotky \n(prac. dny)\n[Kč]","Cena celkem za období úklidu\n[Kč]","Poznámka"]
["schody na střechu",3,null,3,{"$f":"B4*D4+C4*D4","v":9},"sezonně",18,35,52,1,0,"vytření, setření prachu, včetně zábradlí",3.5,null,{"$f":"IF(N4=0,M4*D4/60,N4*D4/60)","v":0.17499999999999999},{"$f":"ROUND(IF(N4=0,M4/60*$B$2,N4/60*$B$2),0)","v":0},{"$f":"P4*D4","v":0},{"$f":"IF(F4=\"denně\",Q4*G4*$B$69,IF(F4=\"týdně\",Q4*G4*$B$70,IF(F4=\"měsíčně\",Q4*G4*$B$71,IF(F4=\"čtvrtletně\",Q4*G4*4*$B$72,IF(F4=\"ročně\",Q4*G4*$B$72,G4*Q4*$B$72)))))*'Základní údaje'!$H$13*IF(K4=1,'Základní údaje'!$C$12,1)","v":0}]
["výtah",null,1,6,6,"sezonně",90,35,52,1,0,"Úklidová činnost č. 11",10,null,1,0,0,{"$f":"IF(F5=\"denně\",Q5*G5*$B$69,IF(F5=\"týdně\",Q5*G5*$B$70,IF(F5=\"měsíčně\",Q5*G5*$B$71,IF(F5=\"čtvrtletně\",Q5*G5*4*$B$72,IF(F5=\"ročně\",Q5*G5*$B$72,G5*Q5*$B$72)))))*'Základní údaje'!$H$13*IF(K5=1,'Základní údaje'!$C$12,1)","v":0}]
["patro chodba s krčkem",236,null,5,1180,"sezonně",90,35,52,1,0,"Úklidová činnost č. 1",40,null,3.3333333333333335,0,0,{"$f":"IF(F6=\"denně\",Q6*G6*$B$69,IF(F6=\"týdně\",Q6*G6*$B$70,IF(F6=\"měsíčně\",Q6*G6*$B$71,IF(F6=\"čtvrtletně\",Q6*G6*4*$B$72,IF(F6=\"ročně\",Q6*G6*$B$72,G6*Q6*$B$72)))))*'Základní údaje'!$H$13*IF(K6=1,'Základní údaje'!$C$12,1)","v":0}]
["přilehlé schodiště",4,null,15,60,"sezonně",36,35,52,1,0,"Úklidová činnost č. 1",1,null,0.25,0,0,{"$f":"IF(F7=\"denně\",Q7*G7*$B$69,IF(F7=\"týdně\",Q7*G7*$B$70,IF(F7=\"měsíčně\",Q7*G7*$B$71,IF(F7=\"čtvrtletně\",Q7*G7*4*$B$72,IF(F7=\"ročně\",Q7*G7*$B$72,G7*Q7*$B$72)))))*'Základní údaje'!$H$13*IF(K7=1,'Základní údaje'!$C$12,1)","v":0}]
["přilehlé zábradlí",null,1,15,15,"sezonně",36,35,52,1,0,"mytí zábradlí",1,null,0.25,0,0,{"$f":"IF(F8=\"denně\",Q8*G8*$B$69,IF(F8=\"týdně\",Q8*G8*$B$70,IF(F8=\"měsíčně\",Q8*G8*$B$71,IF(F8=\"čtvrtletně\",Q8*G8*4*$B$72,IF(F8=\"ročně\",Q8*G8*$B$72,G8*Q8*$B$72)))))*'Základní údaje'!$H$13*IF(K8=1,'Základní údaje'!$C$12,1)","v":0}]
["studovna ",31,null,10,310,"sezonně",36,35,52,1,0,"Úklidová činnost č. 3",15,null,2.5,0,0,{"$f":"IF(F9=\"denně\",Q9*G9*$B$69,IF(F9=\"týdně\",Q9*G9*$B$70,IF(F9=\"měsíčně\",Q9*G9*$B$71,IF(F9=\"čtvrtletně\",Q9*G9*4*$B$72,IF(F9=\"ročně\",Q9*G9*$B$72,G9*Q9*$B$72)))))*'Základní údaje'!$H$13*IF(K9=1,'Základní údaje'!$C$12,1)","v":0}]
["sušárny",6,null,2,12,"sezonně",18,35,52,1,0,"Úklidová činnost č. 3",10,null,0.33333333333333331,0,0,{"$f":"IF(F10=\"denně\",Q10*G10*$B$69,IF(F10=\"týdně\",Q10*G10*$B$70,IF(F10=\"měsíčně\",Q10*G10*$B$71,IF(F10=\"čtvrtletně\",Q10*G10*4*$B$72,IF(F10=\"ročně\",Q10*G10*$B$72,G10*Q10*$B$72)))))*'Základní údaje'!$H$13*IF(K10=1,'Základní údaje'!$C$12,1)","v":0}]
["hala",200,null,1,200,"sezonně",90,35,52,1,0,"Úklidová činnost č. 1",30,null,0.5,0,0,{"$f":"IF(F11=\"denně\",Q11*G11*$B$69,IF(F11=\"týdně\",Q11*G11*$B$70,IF(F11=\"měsíčně\",Q11*G11*$B$71,IF(F11=\"čtvrtletně\",Q11*G11*4*$B$72,IF(F11=\"ročně\",Q11*G11*$B$72,G11*Q11*$B$72)))))*'Základní údaje'!$H$13*IF(K11=1,'Základní údaje'!$C$12,1)","v":0}]
["přilehlé venkovní schodiště",null,1,1,1,"sezonně",90,35,52,1,0,"zamést, sesbírat odpadky",5,null,8.3333333333333329E-2,0,0,{"$f":"IF(F12=\"denně\",Q12*G12*$B$69,IF(F12=\"týdně\",Q12*G12*$B$70,IF(F12=\"měsíčně\",Q12*G12*$B$71,IF(F12=\"čtvrtletně\",Q12*G12*4*$B$72,IF(F12=\"ročně\",Q12*G12*$B$72,G12*Q12*$B$72)))))*'Základní údaje'!$H$13*IF(K12=1,'Základní údaje'!$C$12,1)","v":0}]
["kanceláře",31,null,1,31,"sezonně",18,35,52,1,0,"Úklidová činnost č. 3",10,null,0.16666666666666666,0,0,{"$f":"IF(F13=\"denně\",Q13*G13*$B$69,IF(F13=\"týdně\",Q13*G13*$B$70,IF(F13=\"měsíčně\",Q13*G13*$B$71,IF(F13=\"čtvrtletně\",Q13*G13*4*$B$72,IF(F13=\"ročně\",Q13*G13*$B$72,G13*Q13*$B$72)))))*'Základní údaje'!$H$13*IF(K13=1,'Základní údaje'!$C$12,1)","v":0}]
["recepce",42,null,1,42,"sezonně",18,35,52,1,0,"Úklidová činnost č. 3",15,null,0.25,0,0,{"$f":"IF(F14=\"denně\",Q14*G14*$B$69,IF(F14=\"týdně\",Q14*G14*$B$70,IF(F14=\"měsíčně\",Q14*G14*$B$71,IF(F14=\"čtvrtletně\",Q14*G14*4*$B$72,IF(F14=\"ročně\",Q14*G14*$B$72,G14*Q14*$B$72)))))*'Základní údaje'!$H$13*IF(K14=1,'Základní údaje'!$C$12,1)","v":0}]
["místnost + pračky a sušičky",6,null,1,6,"sezonně",90,35,52,1,0,"Úklidová činnost č. 4",10,null,0.16666666666666666,0,0,{"$f":"IF(F15=\"denně\",Q15*G15*$B$69,IF(F15=\"týdně\",Q15*G15*$B$70,IF(F15=\"měsíčně\",Q15*G15*$B$71,IF(F15=\"čtvrtletně\",Q15*G15*4*$B$72,IF(F15=\"ročně\",Q15*G15*$B$72,G15*Q15*$B$72)))))*'Základní údaje'!$H$13*IF(K15=1,'Základní údaje'!$C$12,1)","v":0}]
["chodba suterén vč.nouz.východu",230,null,1,230,"sezonně",18,35,52,1,0,"Úklidová činnost č. 1",38,null,0.6333333333333333,0,0,{"$f":"IF(F16=\"denně\",Q16*G16*$B$69,IF(F16=\"týdně\",Q16*G16*$B$70,IF(F16=\"měsíčně\",Q16*G16*$B$71,IF(F16=\"čtvrtletně\",Q16*G16*4*$B$72,IF(F16=\"ročně\",Q16*G16*$B$72,G16*Q16*$B$72)))))*'Základní údaje'!$H$13*IF(K16=1,'Základní údaje'!$C$12,1)","v":0}]
["místnost úklízeček a úklid.prost.",9,null,1,9,"sezonně",18,35,52,1,0,"Úklidová činnost č. 3",5,null,8.3333333333333329E-2,0,0,{"$f":"IF(F17=\"denně\",Q17*G17*$B$69,IF(F17=\"týdně\",Q17*G17*$B$70,IF(F17=\"měsíčně\",Q17*G17*$B$71,IF(F17=\"čtvrtletně\",Q17*G17*4*$B$72,IF(F17=\"ročně\",Q17*G17*$B$72,G17*Q17*$B$72)))))*'Základní údaje'!$H$13*IF(K17=1,'Základní údaje'!$C$12,1)","v":0}]
["045 sklad lůžkovin",34,null,1,34,"sezonně",36,35,52,1,0,"Úklidová činnost č. 3",8.5,null,0.14166666666666666,0,0,{"$f":"IF(F18=\"denně\",Q18*G18*$B$69,IF(F18=\"týdně\",Q18*G18*$B$70,IF(F18=\"měsíčně\",Q18*G18*$B$71,IF(F18=\"čtvrtletně\",Q18*G18*4*$B$72,IF(F18=\"ročně\",Q18*G18*$B$72,G18*Q18*$B$72)))))*'Základní údaje'!$H$13*IF(K18=1,'Základní údaje'!$C$12,1)","v":0}]
["023 sklad",45,null,1,45,"sezonně",1,35,52,1,0,"Úklidová činnost č. 3",11,null,0.18333333333333332,0,0,{"$f":"IF(F19=\"denně\",Q19*G19*$B$69,IF(F19=\"týdně\",Q19*G19*$B$70,IF(F19=\"měsíčně\",Q19*G19*$B$71,IF(F19=\"čtvrtletně\",Q19*G19*4*$B$72,IF(F19=\"ročně\",Q19*G19*$B$72,G19*Q19*$B$72)))))*'Základní údaje'!$H$13*IF(K19=1,'Základní údaje'!$C$12,1)","v":0}]
["024 sklad -  nábytek",45,null,1,45,"sezonně",1,35,52,1,0,"Úklidová činnost č. 3",11,null,0.18333333333333332,0,0,{"$f":"IF(F20=\"denně\",Q20*G20*$B$69,IF(F20=\"týdně\",Q20*G20*$B$70,IF(F20=\"měsíčně\",Q20*G20*$B$71,IF(F20=\"čtvrtletně\",Q20*G20*4*$B$72,IF(F20=\"ročně\",Q20*G20*$B$72,G20*Q20*$B$72)))))*'Základní údaje'!$H$13*IF(K20=1,'Základní údaje'!$C$12,1)","v":0}]
["schody na střechu",3,null,3,9,"sezonně",26,1,26,1,0,"vytření, setření prachu, včetně zábradlí",3.5,null,0.17499999999999999,0,0,{"$f":"IF(F21=\"denně\",Q21*G21*$B$69,IF(F21=\"týdně\",Q21*G21*$B$70,IF(F21=\"měsíčně\",Q21*G21*$B$71,IF(F21=\"čtvrtletně\",Q21*G21*4*$B$72,IF(F21=\"ročně\",Q21*G21*$B$72,G21*Q21*$B$72)))))*'Základní údaje'!$H$13*IF(K21=1,'Základní údaje'!$C$12,1)","v":0}]
["výtah",null,1,6,6,"sezonně",130,1,26,1,0,"Úklidová činnost č. 11",10,null,1,0,0,{"$f":"IF(F22=\"denně\",Q22*G22*$B$69,IF(F22=\"týdně\",Q22*G22*$B$70,IF(F22=\"měsíčně\",Q22*G22*$B$71,IF(F22=\"čtvrtletně\",Q22*G22*4*$B$72,IF(F22=\"ročně\",Q22*G22*$B$72,G22*Q22*$B$72)))))*'Základní údaje'!$H$13*IF(K22=1,'Základní údaje'!$C$12,1)","v":0}]
["patro chodba s krčkem",236,null,5,1180,"sezonně",130,1,26,1,0,"Úklidová činnost č. 1",40,null,3.3333333333333335,0,0,{"$f":"IF(F23=\"denně\",Q23*G23*$B$69,IF(F23=\"týdně\",Q23*G23*$B$70,IF(F23=\"měsíčně\",Q23*G23*$B$71,IF(F23=\"čtvrtletně\",Q23*G23*4*$B$72,IF(F23=\"ročně\",Q23*G23*$B$72,G23*Q23*$B$72)))))*'Základní údaje'!$H$13*IF(K23=1,'Základní údaje'!$C$12,1)","v":0}]
["přilehlé schodiště",4,null,15,60,"sezonně",52,1,26,1,0,"Úklidová činnost č. 1",1,null,0.25,0,0,{"$f":"IF(F24=\"denně\",Q24*G24*$B$69,IF(F24=\"týdně\",Q24*G24*$B$70,IF(F24=\"měsíčně\",Q24*G24*$B$71,IF(F24=\"čtvrtletně\",Q24*G24*4*$B$72,IF(F24=\"ročně\",Q24*G24*$B$72,G24*Q24*$B$72)))))*'Základní údaje'!$H$13*IF(K24=1,'Základní údaje'!$C$12,1)","v":0}]
["přilehlé zábradlí",null,1,15,15,"sezonně",52,1,26,1,0,"mytí zábradlí",1,null,0.25,0,0,{"$f":"IF(F25=\"denně\",Q25*G25*$B$69,IF(F25=\"týdně\",Q25*G25*$B$70,IF(F25=\"měsíčně\",Q25*G25*$B$71,IF(F25=\"čtvrtletně\",Q25*G25*4*$B$72,IF(F25=\"ročně\",Q25*G25*$B$72,G25*Q25*$B$72)))))*'Základní údaje'!$H$13*IF(K25=1,'Základní údaje'!$C$12,1)","v":0}]
["studovna ",31,null,10,310,"sezonně",52,1,26,1,0,"Úklidová činnost č. 3",15,null,2.5,0,0,{"$f":"IF(F26=\"denně\",Q26*G26*$B$69,IF(F26=\"týdně\",Q26*G26*$B$70,IF(F26=\"měsíčně\",Q26*G26*$B$71,IF(F26=\"čtvrtletně\",Q26*G26*4*$B$72,IF(F26=\"ročně\",Q26*G26*$B$72,G26*Q26*$B$72)))))*'Základní údaje'!$H$13*IF(K26=1,'Základní údaje'!$C$12,1)","v":0}]
["sušárny",6,null,2,12,"sezonně",1,1,26,1,0,"Úklidová činnost č. 3",10,null,0.33333333333333331,0,0,{"$f":"IF(F27=\"denně\",Q27*G27*$B$69,IF(F27=\"týdně\",Q27*G27*$B$70,IF(F27=\"měsíčně\",Q27*G27*$B$71,IF(F27=\"čtvrtletně\",Q27*G27*4*$B$72,IF(F27=\"ročně\",Q27*G27*$B$72,G27*Q27*$B$72)))))*'Základní údaje'!$H$13*IF(K27=1,'Základní údaje'!$C$12,1)","v":0}]
["hala",200,null,1,200,"sezonně",130,1,26,1,0,"Úklidová činnost č. 1",30,null,0.5,0,0,{"$f":"IF(F28=\"denně\",Q28*G28*$B$69,IF(F28=\"týdně\",Q28*G28*$B$70,IF(F28=\"měsíčně\",Q28*G28*$B$71,IF(F28=\"čtvrtletně\",Q28*G28*4*$B$72,IF(F28=\"ročně\",Q28*G28*$B$72,G28*Q28*$B$72)))))*'Základní údaje'!$H$13*IF(K28=1,'Základní údaje'!$C$12,1)","v":0}]
["přilehlé venkovní schodiště",null,1,1,1,"sezonně",130,1,26,1,0,"zamést, sesbírat odpadky",5,null,8.3333333333333329E-2,0,0,{"$f":"IF(F29=\"denně\",Q29*G29*$B$69,IF(F29=\"týdně\",Q29*G29*$B$70,IF(F29=\"měsíčně\",Q29*G29*$B$71,IF(F29=\"čtvrtletně\",Q29*G29*4*$B$72,IF(F29=\"ročně\",Q29*G29*$B$72,G29*Q29*$B$72)))))*'Základní údaje'!$H$13*IF(K29=1,'Základní údaje'!$C$12,1)","v":0}]
["kanceláře",31,null,1,31,"sezonně",26,1,26,1,0,"Úklidová činnost č. 3",10,null,0.16666666666666666,0,0,{"$f":"IF(F30=\"denně\",Q30*G30*$B$69,IF(F30=\"týdně\",Q30*G30*$B$70,IF(F30=\"měsíčně\",Q30*G30*$B$71,IF(F30=\"čtvrtletně\",Q30*G30*4*$B$72,IF(F30=\"ročně\",Q30*G30*$B$72,G30*Q30*$B$72)))))*'Základní údaje'!$H$13*IF(K30=1,'Základní údaje'!$C$12,1)","v":0}]
["recepce",42,null,1,42,"sezonně",26,1,26,1,0,"Úklidová činnost č. 3",15,null,0.25,0,0,{"$f":"IF(F31=\"denně\",Q31*G31*$B$69,IF(F31=\"týdně\",Q31*G31*$B$70,IF(F31=\"měsíčně\",Q31*G31*$B$71,IF(F31=\"čtvrtletně\",Q31*G31*4*$B$72,IF(F31=\"ročně\",Q31*G31*$B$72,G31*Q31*$B$72)))))*'Základní údaje'!$H$13*IF(K31=1,'Základní údaje'!$C$12,1)","v":0}]
["místnost + pračky a sušičky",6,null,1,6,"sezonně",130,1,26,1,0,"Úklidová činnost č. 4",10,null,0.16666666666666666,0,0,{"$f":"IF(F32=\"denně\",Q32*G32*$B$69,IF(F32=\"týdně\",Q32*G32*$B$70,IF(F32=\"měsíčně\",Q32*G32*$B$71,IF(F32=\"čtvrtletně\",Q32*G32*4*$B$72,IF(F32=\"ročně\",Q32*G32*$B$72,G32*Q32*$B$72)))))*'Základní údaje'!$H$13*IF(K32=1,'Základní údaje'!$C$12,1)","v":0}]
["chodba suterén vč.nouz.východu",230,null,1,230,"sezonně",26,1,26,1,0,"Úklidová činnost č. 1",38,null,0.6333333333333333,0,0,{"$f":"IF(F33=\"denně\",Q33*G33*$B$69,IF(F33=\"týdně\",Q33*G33*$B$70,IF(F33=\"měsíčně\",Q33*G33*$B$71,IF(F33=\"čtvrtletně\",Q33*G33*4*$B$72,IF(F33=\"ročně\",Q33*G33*$B$72,G33*Q33*$B$72)))))*'Základní údaje'!$H$13*IF(K33=1,'Základní údaje'!$C$12,1)","v":0}]
["místnost úklízeček a úklid.prost.",9,null,1,9,"sezonně",26,1,26,1,0,"Úklidová činnost č. 3",5,null,8.3333333333333329E-2,0,0,{"$f":"IF(F34=\"denně\",Q34*G34*$B$69,IF(F34=\"týdně\",Q34*G34*$B$70,IF(F34=\"měsíčně\",Q34*G34*$B$71,IF(F34=\"čtvrtletně\",Q34*G34*4*$B$72,IF(F34=\"ročně\",Q34*G34*$B$72,G34*Q34*$B$72)))))*'Základní údaje'!$H$13*IF(K34=1,'Základní údaje'!$C$12,1)","v":0}]
["045 sklad lůžkovin",34,null,1,34,"sezonně",52,1,26,1,0,"Úklidová činnost č. 3",8.5,null,0.14166666666666666,0,0,{"$f":"IF(F35=\"denně\",Q35*G35*$B$69,IF(F35=\"týdně\",Q35*G35*$B$70,IF(F35=\"měsíčně\",Q35*G35*$B$71,IF(F35=\"čtvrtletně\",Q35*G35*4*$B$72,IF(F35=\"ročně\",Q35*G35*$B$72,G35*Q35*$B$72)))))*'Základní údaje'!$H$13*IF(K35=1,'Základní údaje'!$C$12,1)","v":0}]
["023 sklad",45,null,1,{"$f":"B36*D36+C36*D36","v":45},"sezonně",1,1,26,1,0,"Úklidová činnost č. 3",11,null,{"$f":"IF(N36=0,M36*D36/60,N36*D36/60)","v":0.18333333333333332},{"$f":"ROUND(IF(N36=0,M36/60*$B$2,N36/60*$B$2),0)","v":0},{"$f":"P36*D36","v":0},{"$f":"IF(F36=\"denně\",Q36*G36*$B$69,IF(F36=\"týdně\",Q36*G36*$B$70,IF(F36=\"měsíčně\",Q36*G36*$B$71,IF(F36=\"čtvrtletně\",Q36*G36*4*$B$72,IF(F36=\"ročně\",Q36*G36*$B$72,G36*Q36*$B$72)))))*'Základní údaje'!$H$13*IF(K36=1,'Základní údaje'!$C$12,1)","v":0}]
["024 sklad -  nábytek",45,null,1,45,"sezonně",1,1,26,1,0,"Úklidová činnost č. 3",11,null,0.18333333333333332,0,0,{"$f":"IF(F37=\"denně\",Q37*G37*$B$69,IF(F37=\"týdně\",Q37*G37*$B$70,IF(F37=\"měsíčně\",Q37*G37*$B$71,IF(F37=\"čtvrtletně\",Q37*G37*4*$B$72,IF(F37=\"ročně\",Q37*G37*$B$72,G37*Q37*$B$72)))))*'Základní údaje'!$H$13*IF(K37=1,'Základní údaje'!$C$12,1)","v":0}]
["STUDENTSKÁ KAPACITA"]
["pokoj generální úklid",14,null,266,3724,"sezonně",1,27,34,1,0,"Úklidová činnost č. 6",30,null,133,0,0,{"$f":"IF(F39=\"denně\",Q39*G39*$B$69,IF(F39=\"týdně\",Q39*G39*$B$70,IF(F39=\"měsíčně\",Q39*G39*$B$71,IF(F39=\"čtvrtletně\",Q39*G39*4*$B$72,IF(F39=\"ročně\",Q39*G39*$B$72,G39*Q39*$B$72)))))*'Základní údaje'!$H$13*IF(K39=1,'Základní údaje'!$C$12,1)","v":0}]
["předsíň",15,null,133,1995,"sezonně",2,35,52,1,0,"Úklidová činnost č. 7",25,null,55.416666666666664,0,0,{"$f":"IF(F40=\"denně\",Q40*G40*$B$69,IF(F40=\"týdně\",Q40*G40*$B$70,IF(F40=\"měsíčně\",Q40*G40*$B$71,IF(F40=\"čtvrtletně\",Q40*G40*4*$B$72,IF(F40=\"ročně\",Q40*G40*$B$72,G40*Q40*$B$72)))))*'Základní údaje'!$H$13*IF(K40=1,'Základní údaje'!$C$12,1)","v":0}]
["předsíň",15,null,133,1995,"sezonně",2,1,26,1,0,"Úklidová činnost č. 7",25,null,55.416666666666664,0,0,{"$f":"IF(F41=\"denně\",Q41*G41*$B$69,IF(F41=\"týdně\",Q41*G41*$B$70,IF(F41=\"měsíčně\",Q41*G41*$B$71,IF(F41=\"čtvrtletně\",Q41*G41*4*$B$72,IF(F41=\"ročně\",Q41*G41*$B$72,G41*Q41*$B$72)))))*'Základní údaje'!$H$13*IF(K41=1,'Základní údaje'!$C$12,1)","v":0}]
["předsíň - generální úklid",15,null,133,1995,"sezonně",1,27,34,1,0,"Úklidová činnost č. 7",25,null,55.416666666666664,0,0,{"$f":"IF(F42=\"denně\",Q42*G42*$B$69,IF(F42=\"týdně\",Q42*G42*$B$70,IF(F42=\"měsíčně\",Q42*G42*$B$71,IF(F42=\"čtvrtletně\",Q42*G42*4*$B$72,IF(F42=\"ročně\",Q42*G42*$B$72,G42*Q42*$B$72)))))*'Základní údaje'!$H$13*IF(K42=1,'Základní údaje'!$C$12,1)","v":0}]
["wc",null,1,133,133,"sezonně",2,35,52,1,0,"Úklidová činnost č. 14",8,null,17.733333333333334,0,0,{"$f":"IF(F43=\"denně\",Q43*G43*$B$69,IF(F43=\"týdně\",Q43*G43*$B$70,IF(F43=\"měsíčně\",Q43*G43*$B$71,IF(F43=\"čtvrtletně\",Q43*G43*4*$B$72,IF(F43=\"ročně\",Q43*G43*$B$72,G43*Q43*$B$72)))))*'Základní údaje'!$H$13*IF(K43=1,'Základní údaje'!$C$12,1)","v":0}]
["wc",null,1,133,133,"sezonně",2,1,26,1,0,"Úklidová činnost č. 14",8,null,17.733333333333334,0,0,{"$f":"IF(F44=\"denně\",Q44*G44*$B$69,IF(F44=\"týdně\",Q44*G44*$B$70,IF(F44=\"měsíčně\",Q44*G44*$B$71,IF(F44=\"čtvrtletně\",Q44*G44*4*$B$72,IF(F44=\"ročně\",Q44*G44*$B$72,G44*Q44*$B$72)))))*'Základní údaje'!$H$13*IF(K44=1,'Základní údaje'!$C$12,1)","v":0}]
["wc - generální úklid",null,1,133,133,"sezonně",1,27,34,1,0,"Úklidová činnost č. 14",8,null,17.733333333333334,0,0,{"$f":"IF(F45=\"denně\",Q45*G45*$B$69,IF(F45=\"týdně\",Q45*G45*$B$70,IF(F45=\"měsíčně\",Q45*G45*$B$71,IF(F45=\"čtvrtletně\",Q45*G45*4*$B$72,IF(F45=\"ročně\",Q45*G45*$B$72,G45*Q45*$B$72)))))*'Základní údaje'!$H$13*IF(K45=1,'Základní údaje'!$C$12,1)","v":0}]
["koupelna se sprchou",2,null,133,266,"sezonně",2,35,52,1,0,"Úklidová činnost č. 15",10,null,22.166666666666668,0,0,{"$f":"IF(F46=\"denně\",Q46*G46*$B$69,IF(F46=\"týdně\",Q46*G46*$B$70,IF(F46=\"měsíčně\",Q46*G46*$B$71,IF(F46=\"čtvrtletně\",Q46*G46*4*$B$72,IF(F46=\"ročně\",Q46*G46*$B$72,G46*Q46*$B$72)))))*'Základní údaje'!$H$13*IF(K46=1,'Základní údaje'!$C$12,1)","v":0}]
["koupelna se sprchou",2,null,133,266,"sezonně",2,1,26,1,0,"Úklidová činnost č. 15",10,null,22.166666666666668,0,0,{"$f":"IF(F47=\"denně\",Q47*G47*$B$69,IF(F47=\"týdně\",Q47*G47*$B$70,IF(F47=\"měsíčně\",Q47*G47*$B$71,IF(F47=\"čtvrtletně\",Q47*G47*4*$B$72,IF(F47=\"ročně\",Q47*G47*$B$72,G47*Q47*$B$72)))))*'Základní údaje'!$H$13*IF(K47=1,'Základní údaje'!$C$12,1)","v":0}]
["koupelna se sprchou -generální úklid",2,null,133,266,"sezonně",1,27,34,1,0,"Úklidová činnost č. 15",10,null,22.166666666666668,0,0,{"$f":"IF(F48=\"denně\",Q48*G48*$B$69,IF(F48=\"týdně\",Q48*G48*$B$70,IF(F48=\"měsíčně\",Q48*G48*$B$71,IF(F48=\"čtvrtletně\",Q48*G48*4*$B$72,IF(F48=\"ročně\",Q48*G48*$B$72,G48*Q48*$B$72)))))*'Základní údaje'!$H$13*IF(K48=1,'Základní údaje'!$C$12,1)","v":0}]
["kuchyňka",null,1,133,133,"sezonně",2,35,52,1,0,"Úklidová činnost č. 5",12,null,26.6,0,0,{"$f":"IF(F49=\"denně\",Q49*G49*$B$69,IF(F49=\"týdně\",Q49*G49*$B$70,IF(F49=\"měsíčně\",Q49*G49*$B$71,IF(F49=\"čtvrtletně\",Q49*G49*4*$B$72,IF(F49=\"ročně\",Q49*G49*$B$72,G49*Q49*$B$72)))))*'Základní údaje'!$H$13*IF(K49=1,'Základní údaje'!$C$12,1)","v":0}]
["kuchyňka",null,1,133,133,"sezonně",2,1,26,1,0,"Úklidová činnost č. 5",12,null,26.6,0,0,{"$f":"IF(F50=\"denně\",Q50*G50*$B$69,IF(F50=\"týdně\",Q50*G50*$B$70,IF(F50=\"měsíčně\",Q50*G50*$B$71,IF(F50=\"čtvrtletně\",Q50*G50*4*$B$72,IF(F50=\"ročně\",Q50*G50*$B$72,G50*Q50*$B$72)))))*'Základní údaje'!$H$13*IF(K50=1,'Základní údaje'!$C$12,1)","v":0}]
["kuchyňka - generální úklid",null,1,133,133,"sezonně",1,27,34,1,0,"Úklidová činnost č. 5",12,null,26.6,0,0,{"$f":"IF(F51=\"denně\",Q51*G51*$B$69,IF(F51=\"týdně\",Q51*G51*$B$70,IF(F51=\"měsíčně\",Q51*G51*$B$71,IF(F51=\"čtvrtletně\",Q51*G51*4*$B$72,IF(F51=\"ročně\",Q51*G51*$B$72,G51*Q51*$B$72)))))*'Základní údaje'!$H$13*IF(K51=1,'Základní údaje'!$C$12,1)","v":0}]
["HOTEL"]
["hotelový dvolůžkový, po odjezdu",50,null,1,50,"týdně",2,null,null,1,1,"Úklidová činnost č. 8",90,null,1.5,0,0,{"$f":"IF(F53=\"denně\",Q53*G53*$B$69,IF(F53=\"týdně\",Q53*G53*$B$70,IF(F53=\"měsíčně\",Q53*G53*$B$71,IF(F53=\"čtvrtletně\",Q53*G53*4*$B$72,IF(F53=\"ročně\",Q53*G53*$B$72,G53*Q53*$B$72)))))*'Základní údaje'!$H$13*IF(K53=1,'Základní údaje'!$C$12,1)","v":0}]
["hotelový dvolůžkový, průběžně",50,null,1,50,"týdně",1,null,null,1,1,"Úklidová činnost č. 9",20,null,0.33333333333333331,0,0,{"$f":"IF(F54=\"denně\",Q54*G54*$B$69,IF(F54=\"týdně\",Q54*G54*$B$70,IF(F54=\"měsíčně\",Q54*G54*$B$71,IF(F54=\"čtvrtletně\",Q54*G54*4*$B$72,IF(F54=\"ročně\",Q54*G54*$B$72,G54*Q54*$B$72)))))*'Základní údaje'!$H$13*IF(K54=1,'Základní údaje'!$C$12,1)","v":0}]
["Ostatní"]
["okna velká",null,1,500,500,"ročně",1,null,null,1,0,"Úklidová činnost č. 12",30,null,250,0,0,{"$f":"IF(F56=\"denně\",Q56*G56*$B$69,IF(F56=\"týdně\",Q56*G56*$B$70,IF(F56=\"měsíčně\",Q56*G56*$B$71,IF(F56=\"čtvrtletně\",Q56*G56*4*$B$72,IF(F56=\"ročně\",Q56*G56*$B$72,G56*Q56*$B$72)))))*'Základní údaje'!$H$13*IF(K56=1,'Základní údaje'!$C$12,1)","v":0}]
["balkonové dveře",null,1,52,52,"ročně",1,null,null,1,0,"Úklidová činnost č. 12",30,null,26,0,0,{"$f":"IF(F57=\"denně\",Q57*G57*$B$69,IF(F57=\"týdně\",Q57*G57*$B$70,IF(F57=\"měsíčně\",Q57*G57*$B$71,IF(F57=\"čtvrtletně\",Q57*G57*4*$B$72,IF(F57=\"ročně\",Q57*G57*$B$72,G57*Q57*$B$72)))))*'Základní údaje'!$H$13*IF(K57=1,'Základní údaje'!$C$12,1)","v":0}]
["malé okno",null,1,65,65,"ročně",1,null,null,1,0,"Úklidová činnost č. 12",20,null,21.666666666666668,0,0,{"$f":"IF(F58=\"denně\",Q58*G58*$B$69,IF(F58=\"týdně\",Q58*G58*$B$70,IF(F58=\"měsíčně\",Q58*G58*$B$71,IF(F58=\"čtvrtletně\",Q58*G58*4*$B$72,IF(F58=\"ročně\",Q58*G58*$B$72,G58*Q58*$B$72)))))*'Základní údaje'!$H$13*IF(K58=1,'Základní údaje'!$C$12,1)","v":0}]
["čistění matrací",null,1,532,532,"ročně",1,null,null,1,0,"Úklidová činnost č. 13",15,null,133,0,0,{"$f":"IF(F59=\"denně\",Q59*G59*$B$69,IF(F59=\"týdně\",Q59*G59*$B$70,IF(F59=\"měsíčně\",Q59*G59*$B$71,IF(F59=\"čtvrtletně\",Q59*G59*4*$B$72,IF(F59=\"ročně\",Q59*G59*$B$72,G59*Q59*$B$72)))))*'Základní údaje'!$H$13*IF(K59=1,'Základní údaje'!$C$12,1)","v":0}]
["skleněné plochy na chodbách",null,1,125,125,"měsíčně",1,null,null,1,0,"umýt, vyleštit",5,null,10.416666666666666,0,0,{"$f":"IF(F60=\"denně\",Q60*G60*$B$69,IF(F60=\"týdně\",Q60*G60*$B$70,IF(F60=\"měsíčně\",Q60*G60*$B$71,IF(F60=\"čtvrtletně\",Q60*G60*4*$B$72,IF(F60=\"ročně\",Q60*G60*$B$72,G60*Q60*$B$72)))))*'Základní údaje'!$H$13*IF(K60=1,'Základní údaje'!$C$12,1)","v":0}]
["společná kuchyňka",null,1,1,1,"týdně",2,null,null,1,0,"Úklidová činnost č. 5",20,null,0.33333333333333331,0,0,{"$f":"IF(F61=\"denně\",Q61*G61*$B$69,IF(F61=\"týdně\",Q61*G61*$B$70,IF(F61=\"měsíčně\",Q61*G61*$B$71,IF(F61=\"čtvrtletně\",Q61*G61*4*$B$72,IF(F61=\"ročně\",Q61*G61*$B$72,G61*Q61*$B$72)))))*'Základní údaje'!$H$13*IF(K61=1,'Základní údaje'!$C$12,1)","v":0}]
["sklené plochy ve vstupní chodbě",null,1,1,1,"týdně",3,null,null,1,0,"umýt, vyleštit",30,null,0.5,0,0,{"$f":"IF(F62=\"denně\",Q62*G62*$B$69,IF(F62=\"týdně\",Q62*G62*$B$70,IF(F62=\"měsíčně\",Q62*G62*$B$71,IF(F62=\"čtvrtletně\",Q62*G62*4*$B$72,IF(F62=\"ročně\",Q62*G62*$B$72,G62*Q62*$B$72)))))*'Základní údaje'!$H$13*IF(K62=1,'Základní údaje'!$C$12,1)","v":0}]
["kontrola stavu úklidu při odjezdu",null,1,266,266,"sezonně",1,25,27,1,0,"Úklidová činnost č. 10",8,null,35.466666666666669,0,0,{"$f":"IF(F63=\"denně\",Q63*G63*$B$69,IF(F63=\"týdně\",Q63*G63*$B$70,IF(F63=\"měsíčně\",Q63*G63*$B$71,IF(F63=\"čtvrtletně\",Q63*G63*4*$B$72,IF(F63=\"ročně\",Q63*G63*$B$72,G63*Q63*$B$72)))))*'Základní údaje'!$H$13*IF(K63=1,'Základní údaje'!$C$12,1)","v":0}]
[null,null,null,null,{"$f":"B64*D64+C64*D64","v":0},null,null,null,null,null,null,null,null,null,{"$f":"IF(N64=0,M64*D64/60,N64*D64/60)","v":0},{"$f":"ROUND(IF(N64=0,M64/60*$B$2,N64/60*$B$2),0)","v":0},{"$f":"P64*D64","v":0},{"$f":"IF(F64=\"denně\",Q64*G64*$B$69,IF(F64=\"týdně\",Q64*G64*$B$70,IF(F64=\"měsíčně\",Q64*G64*$B$71,IF(F64=\"čtvrtletně\",Q64*G64*4*$B$72,IF(F64=\"ročně\",Q64*G64*$B$72,G64*Q64*$B$72)))))*'Základní údaje'!$H$13*IF(K64=1,'Základní údaje'!$C$12,1)","v":0}]
[null,null,null,null,0,null,null,null,null,null,null,null,null,null,0,0,0,{"$f":"IF(F65=\"denně\",Q65*G65*$B$69,IF(F65=\"týdně\",Q65*G65*$B$70,IF(F65=\"měsíčně\",Q65*G65*$B$71,IF(F65=\"čtvrtletně\",Q65*G65*4*$B$72,IF(F65=\"ročně\",Q65*G65*$B$72,G65*Q65*$B$72)))))*'Základní údaje'!$H$13*IF(K65=1,'Základní údaje'!$C$12,1)","v":0}]
[null,null,null,null,{"$f":"B66*D66+C66*D66","v":0},null,null,null,null,null,null,null,null,null,{"$f":"IF(N66=0,M66*D66/60,N66*D66/60)","v":0},{"$f":"ROUND(IF(N66=0,M66/60*$B$2,N66/60*$B$2),0)","v":0},{"$f":"P66*D66","v":0},{"$f":"IF(F66=\"denně\",Q66*G66*$B$69,IF(F66=\"týdně\",Q66*G66*$B$70,IF(F66=\"měsíčně\",Q66*G66*$B$71,IF(F66=\"čtvrtletně\",Q66*G66*4*$B$72,IF(F66=\"ročně\",Q66*G66*$B$72,G66*Q66*$B$72)))))*'Základní údaje'!$H$13*IF(K66=1,'Základní údaje'!$C$12,1)","v":0}]
["Plocha celkem",{"$f":"SUMPRODUCT(B4:B66,D4:D66)","v":15033},"[m²]"]
["Počet kusů celkem",{"$f":"SUMPRODUCT(C4:C47,D4:D47)","v":443},"[-]"]
["Počet pracovních dnů úklidu:",{"$f":"NETWORKDAYS($C$1,$D$1,$A$79:$A$145)","v":1005},null,null,null,null,null,null,null,null,null,{"$f":"NETWORKDAYS(J69,K69,J70)","v":0}]
["Počet týdnů úklidu:",{"$f":"B72*52","v":208}]
["Počet měsíců úklidu:",{"$f":"B72*12","v":48}]
["Počet let úklidu",{"$f":"YEAR(D1)-YEAR(C1)","v":4}]
["CENA CELKEM:",{"$f":"ROUND(SUM(R4:R66),0)","v":0},null,null,"[Kč]"]
[]
[]
[]
[]
["svátky:","četnost úklidu","označení","období úklidu",null,null,"Kritéria"]
["2019-01-01","denně",0,"1. Q",null,null,{"$f":"$F$3","v":"uklízí se"}]
["2019-04-19","týdně",1,"2. Q",null,null,{"$f":"B79","v":"denně"}]
["2019-04-22","měsíčně",null,"3. Q"]
["2019-05-01","čtvrtletně",null,"4. Q",null,null,{"$f":"$F$3","v":"uklízí se"}]
["2019-05-08","ročně",null,"leden",null,null,{"$f":"B80","v":"týdně"}]
["2019-07-05","sezonně",null,"únor"]
["2019-10-28",null,null,"březen",null,null,{"$f":"$F$3","v":"uklízí se"}]
["2019-12-24",null,null,"duben",null,null,{"$f":"B81","v":"měsíčně"}]
["2019-12-25",null,null,"květen"]
["2019-12-26",null,null,"červen",null,null,{"$f":"$F$3","v":"uklízí se"}]
["2020-01-01",null,null,"červenec",null,null,{"$f":"B82","v":"čtvrtletně"}]
["2020-04-10",null,null,"srpen"]
["2020-04-13",null,null,"září",null,null,{"$f":"$F$3","v":"uklízí se"}]
["2020-05-01",null,null,"říjen",null,null,{"$f":"B83","v":"ročně"}]
["2020-05-08",null,null,"listopat"]
["2020-07-06",null,null,"prosinec"]
["2020-09-28"]
["2020-10-28"]
["2020-11-17"]
["2020-12-24"]
["2020-12-25"]
["2021-01-01"]
["2021-04-02"]
["2021-04-05"]
["2021-07-05"]
["2021-07-06"]
["2021-09-28"]
["2021-10-28"]
["2021-11-17"]
["2021-12-24"]
["2022-04-15"]
["2022-04-18"]
["2022-07-05"]
["2022-07-06"]
["2022-09-28"]
["2022-10-28"]
["2022-11-17"]
["2022-12-26"]
["2023-04-07"]
["2023-04-10"]
["2023-05-01"]
["2023-05-08"]
["2023-07-05"]
["2023-07-06"]
["2023-09-28"]
["2023-11-17"]
["2023-12-25"]
["2023-12-26"]
["2024-01-01"]
["2024-03-29"]
["2024-04-01"]
["2024-05-01"]
["2024-05-08"]
["2024-07-05"]
["2024-10-28"]
["2024-12-24"]
["2024-12-26"]
["2024-12-26"]
["2025-01-01"]
["2025-04-18"]
["2025-04-21"]
["2025-10-28"]
["2025-11-17"]
["2025-12-24"]
["2025-12-25"]
["2025-12-26"]

{"sheet":"Karty úklidu","index":2,"n_rows":69,"n_cols":8,"rows_kept":69,"cut":false,"hidden":false,"merged":[]}
["V komentáři jsou zkatky pro tisk"]
["Karta úklidu",null,null,{"$f":"'Rozpis úklidu'!$A$1","v":"kolej: Vltava, VŠE"}]
["DENNÍ ÚKLID                       DNE:",{"$f":"NOW()","v":"2020-02-21T12:38:39.410"}]
[{"$f":"'Rozpis úklidu'!$A$3","v":"Úklidová jednotka"},{"$f":"'Rozpis úklidu'!$D$3","v":"počet\núklidových jednotek"},"Doba úklidu\n[hod.]",{"$f":"'Rozpis úklidu'!$L$3","v":"Popis činnosti"},{"$f":"'Rozpis úklidu'!$Q$3","v":"cena celkem za všechny úklidové jednotky \n(prac. dny)\n[Kč]"},"Správně\nuklizené\njednotky","Smluvní pokuta\n[Kč]","Poznámka"]
[{"$f":"'Rozpis úklidu'!A5","v":"výtah"},{"$f":"'Rozpis úklidu'!D5","v":6},{"$f":"IF('Rozpis úklidu'!N5=0,'Rozpis úklidu'!M5*B5/60,'Rozpis úklidu'!N5*B5/60)","v":1},{"$f":"'Rozpis úklidu'!L5","v":"Úklidová činnost č. 11"},{"$f":"'Rozpis úklidu'!P5*F5","v":0},6,{"$f":"IF(F5<B5,(B5-F5)*('Rozpis úklidu'!P5)*2,0)","v":0}]
[{"$f":"'Rozpis úklidu'!A6","v":"patro chodba s krčkem"},{"$f":"'Rozpis úklidu'!D6","v":5},{"$f":"IF('Rozpis úklidu'!N6=0,'Rozpis úklidu'!M6*B6/60,'Rozpis úklidu'!N6*B6/60)","v":3.3333333333333335},{"$f":"'Rozpis úklidu'!L6","v":"Úklidová činnost č. 1"},{"$f":"'Rozpis úklidu'!P6*F6","v":0},5,{"$f":"IF(F6<B6,(B6-F6)*('Rozpis úklidu'!P6)*2,0)","v":0}]
[{"$f":"'Rozpis úklidu'!A11","v":"hala"},{"$f":"'Rozpis úklidu'!D11","v":1},{"$f":"IF('Rozpis úklidu'!N11=0,'Rozpis úklidu'!M11*B7/60,'Rozpis úklidu'!N11*B7/60)","v":0.5},{"$f":"'Rozpis úklidu'!L11","v":"Úklidová činnost č. 1"},{"$f":"'Rozpis úklidu'!P11*F7","v":0},1,{"$f":"IF(F7<B7,(B7-F7)*('Rozpis úklidu'!P11)*2,0)","v":0}]
[{"$f":"'Rozpis úklidu'!A12","v":"přilehlé venkovní schodiště"},{"$f":"'Rozpis úklidu'!D12","v":1},{"$f":"IF('Rozpis úklidu'!N12=0,'Rozpis úklidu'!M12*B8/60,'Rozpis úklidu'!N12*B8/60)","v":8.3333333333333329E-2},{"$f":"'Rozpis úklidu'!L12","v":"zamést, sesbírat odpadky"},{"$f":"'Rozpis úklidu'!P12*F8","v":0},1,{"$f":"IF(F8<B8,(B8-F8)*('Rozpis úklidu'!P12)*2,0)","v":0}]
[{"$f":"'Rozpis úklidu'!A15","v":"místnost + pračky a sušičky"},{"$f":"'Rozpis úklidu'!D15","v":1},{"$f":"IF('Rozpis úklidu'!N15=0,'Rozpis úklidu'!M15*B9/60,'Rozpis úklidu'!N15*B9/60)","v":0.16666666666666666},{"$f":"'Rozpis úklidu'!L15","v":"Úklidová činnost č. 4"},{"$f":"'Rozpis úklidu'!P15*F9","v":0},1,{"$f":"IF(F9<B9,(B9-F9)*('Rozpis úklidu'!P15)*2,0)","v":0}]
["Úklidová pohotovost + Operativní úklidové práce dle požadavku vedoucí koleje",{"$f":"'Základní údaje'!B11","v":0},null,null,{"$f":"B10/60*F10","v":0},null,0]
[null,"Celkem hodin",{"$f":"SUM(C5:C9)","v":5.0833333333333339},"K FAKTURACI CELKEM:",{"$f":"SUM(E5:E10)","v":0},null,{"$f":"SUM(G5:G10)","v":0}]
["Podpis vedoucí směny:",null,null,"Podpis zástupce vedení koleje:"]
[]
["Karta úklidu",null,null,{"$f":"'Rozpis úklidu'!$A$1","v":"kolej: Vltava, VŠE"}]
["TÝDENNÍ ÚKLID                 TÝDEN:",{"$f":"WEEKNUM(TODAY(),1)","v":8},null,{"$f":"(NOW())","v":"2020-02-21T12:38:39.410"}]
[{"$f":"'Rozpis úklidu'!$A$3","v":"Úklidová jednotka"},{"$f":"'Rozpis úklidu'!$D$3","v":"počet\núklidových jednotek"},"Doba úklidu\n[hod.]",{"$f":"'Rozpis úklidu'!$L$3","v":"Popis činnosti"},{"$f":"'Rozpis úklidu'!$Q$3","v":"cena celkem za všechny úklidové jednotky \n(prac. dny)\n[Kč]"},"Správně\nuklizené\njednotky","Smluvní pokuta\n[Kč]","Poznámka"]
[{"$f":"'Rozpis úklidu'!A4","v":"schody na střechu"},{"$f":"'Rozpis úklidu'!D4/('Rozpis úklidu'!I4-'Rozpis úklidu'!H4+1)*'Rozpis úklidu'!G4","v":3},{"$f":"IF('Rozpis úklidu'!N4=0,'Rozpis úklidu'!M4*B17/60,'Rozpis úklidu'!N4*B17/60)","v":0.17499999999999999},{"$f":"'Rozpis úklidu'!L4","v":"vytření, setření prachu, včetně zábradlí"},{"$f":"'Rozpis úklidu'!P4*F17","v":0},3,{"$f":"IF(F17<B17,(B17-F17)*('Rozpis úklidu'!P4)*2,0)","v":0}]
[{"$f":"'Rozpis úklidu'!A7","v":"přilehlé schodiště"},{"$f":"'Rozpis úklidu'!D7/('Rozpis úklidu'!I7-'Rozpis úklidu'!H7+1)*'Rozpis úklidu'!G7","v":30},{"$f":"IF('Rozpis úklidu'!N7=0,'Rozpis úklidu'!M7*B18/60,'Rozpis úklidu'!N7*B18/60)","v":0.5},{"$f":"'Rozpis úklidu'!L7","v":"Úklidová činnost č. 1"},{"$f":"'Rozpis úklidu'!P7*F18","v":0},30,{"$f":"IF(F18<B18,(B18-F18)*('Rozpis úklidu'!P7)*2,0)","v":0}]
[{"$f":"'Rozpis úklidu'!A8","v":"přilehlé zábradlí"},{"$f":"'Rozpis úklidu'!D8/('Rozpis úklidu'!I8-'Rozpis úklidu'!H8+1)*'Rozpis úklidu'!G8","v":30},{"$f":"IF('Rozpis úklidu'!N8=0,'Rozpis úklidu'!M8*B19/60,'Rozpis úklidu'!N8*B19/60)","v":0.5},{"$f":"'Rozpis úklidu'!L8","v":"mytí zábradlí"},{"$f":"'Rozpis úklidu'!P8*F19","v":0},30,{"$f":"IF(F19<B19,(B19-F19)*('Rozpis úklidu'!P8)*2,0)","v":0}]
[{"$f":"'Rozpis úklidu'!A9","v":"studovna "},{"$f":"'Rozpis úklidu'!D9/('Rozpis úklidu'!I9-'Rozpis úklidu'!H9+1)*'Rozpis úklidu'!G9","v":20},{"$f":"IF('Rozpis úklidu'!N9=0,'Rozpis úklidu'!M9*B20/60,'Rozpis úklidu'!N9*B20/60)","v":5},{"$f":"'Rozpis úklidu'!L9","v":"Úklidová činnost č. 3"},{"$f":"'Rozpis úklidu'!P9*F20","v":0},20,{"$f":"IF(F20<B20,(B20-F20)*('Rozpis úklidu'!P9)*2,0)","v":0}]
[{"$f":"'Rozpis úklidu'!A10","v":"sušárny"},{"$f":"'Rozpis úklidu'!D10/('Rozpis úklidu'!I10-'Rozpis úklidu'!H10+1)*'Rozpis úklidu'!G10","v":2},{"$f":"IF('Rozpis úklidu'!N10=0,'Rozpis úklidu'!M10*B21/60,'Rozpis úklidu'!N10*B21/60)","v":0.33333333333333331},{"$f":"'Rozpis úklidu'!L10","v":"Úklidová činnost č. 3"},{"$f":"'Rozpis úklidu'!P10*F21","v":0},2,{"$f":"IF(F21<B21,(B21-F21)*('Rozpis úklidu'!P10)*2,0)","v":0}]
[{"$f":"'Rozpis úklidu'!A13","v":"kanceláře"},{"$f":"'Rozpis úklidu'!D13/('Rozpis úklidu'!I13-'Rozpis úklidu'!H13+1)*'Rozpis úklidu'!G13","v":1},{"$f":"IF('Rozpis úklidu'!N13=0,'Rozpis úklidu'!M13*B22/60,'Rozpis úklidu'!N13*B22/60)","v":0.16666666666666666},{"$f":"'Rozpis úklidu'!L13","v":"Úklidová činnost č. 3"},{"$f":"'Rozpis úklidu'!P13*F22","v":0},1,{"$f":"IF(F22<B22,(B22-F22)*('Rozpis úklidu'!P13)*2,0)","v":0}]
[{"$f":"'Rozpis úklidu'!A14","v":"recepce"},{"$f":"'Rozpis úklidu'!D14/('Rozpis úklidu'!I14-'Rozpis úklidu'!H14+1)*'Rozpis úklidu'!G14","v":1},{"$f":"IF('Rozpis úklidu'!N14=0,'Rozpis úklidu'!M14*B23/60,'Rozpis úklidu'!N14*B23/60)","v":0.25},{"$f":"'Rozpis úklidu'!L14","v":"Úklidová činnost č. 3"},{"$f":"'Rozpis úklidu'!P14*F23","v":0},1,{"$f":"IF(F23<B23,(B23-F23)*('Rozpis úklidu'!P14)*2,0)","v":0}]
[{"$f":"'Rozpis úklidu'!A16","v":"chodba suterén vč.nouz.východu"},{"$f":"'Rozpis úklidu'!D16/('Rozpis úklidu'!I16-'Rozpis úklidu'!H16+1)*'Rozpis úklidu'!G16","v":1},{"$f":"IF('Rozpis úklidu'!N16=0,'Rozpis úklidu'!M16*B24/60,'Rozpis úklidu'!N16*B24/60)","v":0.6333333333333333},{"$f":"'Rozpis úklidu'!L16","v":"Úklidová činnost č. 1"},{"$f":"'Rozpis úklidu'!P16*F24","v":0},1,{"$f":"IF(F24<B24,(B24-F24)*('Rozpis úklidu'!P16)*2,0)","v":0}]
[{"$f":"'Rozpis úklidu'!A17","v":"místnost úklízeček a úklid.prost."},{"$f":"'Rozpis úklidu'!D17/('Rozpis úklidu'!I17-'Rozpis úklidu'!H17+1)*'Rozpis úklidu'!G17","v":1},{"$f":"IF('Rozpis úklidu'!N17=0,'Rozpis úklidu'!M17*B25/60,'Rozpis úklidu'!N17*B25/60)","v":8.3333333333333329E-2},{"$f":"'Rozpis úklidu'!L17","v":"Úklidová činnost č. 3"},{"$f":"'Rozpis úklidu'!P17*F25","v":0},1,{"$f":"IF(F25<B25,(B25-F25)*('Rozpis úklidu'!P17)*2,0)","v":0}]
[{"$f":"'Rozpis úklidu'!A18","v":"045 sklad lůžkovin"},{"$f":"'Rozpis úklidu'!D18/('Rozpis úklidu'!I18-'Rozpis úklidu'!H18+1)*'Rozpis úklidu'!G18","v":2},{"$f":"IF('Rozpis úklidu'!N18=0,'Rozpis úklidu'!M18*B26/60,'Rozpis úklidu'!N18*B26/60)","v":0.28333333333333333},{"$f":"'Rozpis úklidu'!L18","v":"Úklidová činnost č. 3"},{"$f":"'Rozpis úklidu'!P18*F26","v":0},2,{"$f":"IF(F26<B26,(B26-F26)*('Rozpis úklidu'!P18)*2,0)","v":0}]
[{"$f":"'Rozpis úklidu'!A61","v":"společná kuchyňka"},{"$f":"CEILING('Rozpis úklidu'!D61/('Rozpis úklidu'!I61-'Rozpis úklidu'!H61+1)*'Rozpis úklidu'!G61,1)","v":2},{"$f":"IF('Rozpis úklidu'!N61=0,'Rozpis úklidu'!M61*B27/60,'Rozpis úklidu'!N61*B27/60)","v":0.66666666666666663},{"$f":"'Rozpis úklidu'!L61","v":"Úklidová činnost č. 5"},{"$f":"'Rozpis úklidu'!P61*F27","v":0},2,{"$f":"IF(F27<B27,(B27-F27)*('Rozpis úklidu'!P61)*2,0)","v":0}]
[{"$f":"'Rozpis úklidu'!A62","v":"sklené plochy ve vstupní chodbě"},{"$f":"CEILING('Rozpis úklidu'!D62/('Rozpis úklidu'!I62-'Rozpis úklidu'!H62+1)*'Rozpis úklidu'!G62,1)","v":3},{"$f":"IF('Rozpis úklidu'!N62=0,'Rozpis úklidu'!M62*B28/60,'Rozpis úklidu'!N62*B28/60)","v":1.5},{"$f":"'Rozpis úklidu'!L62","v":"umýt, vyleštit"},{"$f":"'Rozpis úklidu'!P62*F28","v":0},3,{"$f":"IF(F28<B28,(B28-F28)*('Rozpis úklidu'!P62)*2,0)","v":0}]
[{"$f":"CONCATENATE('Rozpis úklidu'!A40,\" (\",CEILING('Rozpis úklidu'!D40/('Rozpis úklidu'!I40-'Rozpis úklidu'!H40+1)*'Rozpis úklidu'!G40,1),\")\")","v":"předsíň (15)"},0,{"$f":"IF('Rozpis úklidu'!N40=0,'Rozpis úklidu'!M40*B29/60,'Rozpis úklidu'!N40*B29/60)","v":0},{"$f":"'Rozpis úklidu'!L40","v":"Úklidová činnost č. 7"},{"$f":"'Rozpis úklidu'!P40*F29","v":0},0,{"$f":"IF(F29<B29,(B29-F29)*('Rozpis úklidu'!P40)*2,0)","v":0}]
[{"$f":"CONCATENATE('Rozpis úklidu'!A43,\" (\",CEILING('Rozpis úklidu'!D43/('Rozpis úklidu'!I43-'Rozpis úklidu'!H43+1)*'Rozpis úklidu'!G43,1),\")\")","v":"wc (15)"},0,{"$f":"IF('Rozpis úklidu'!N43=0,'Rozpis úklidu'!M43*B30/60,'Rozpis úklidu'!N43*B30/60)","v":0},{"$f":"'Rozpis úklidu'!L43","v":"Úklidová činnost č. 14"},{"$f":"'Rozpis úklidu'!P43*F30","v":0},0,{"$f":"IF(F30<B30,(B30-F30)*('Rozpis úklidu'!P43)*2,0)","v":0}]
[{"$f":"CONCATENATE('Rozpis úklidu'!A46,\" (\",CEILING('Rozpis úklidu'!D46/('Rozpis úklidu'!I46-'Rozpis úklidu'!H46+1)*'Rozpis úklidu'!G46,1),\")\")","v":"koupelna se sprchou (15)"},0,{"$f":"IF('Rozpis úklidu'!N46=0,'Rozpis úklidu'!M46*B31/60,'Rozpis úklidu'!N46*B31/60)","v":0},{"$f":"'Rozpis úklidu'!L46","v":"Úklidová činnost č. 15"},{"$f":"'Rozpis úklidu'!P46*F31","v":0},0,{"$f":"IF(F31<B31,(B31-F31)*('Rozpis úklidu'!P46)*2,0)","v":0}]
[{"$f":"CONCATENATE('Rozpis úklidu'!A49,\" (\",CEILING('Rozpis úklidu'!D49/('Rozpis úklidu'!I49-'Rozpis úklidu'!H49+1)*'Rozpis úklidu'!G49,1),\")\")","v":"kuchyňka (15)"},0,{"$f":"IF('Rozpis úklidu'!N49=0,'Rozpis úklidu'!M49*B32/60,'Rozpis úklidu'!N49*B32/60)","v":0},{"$f":"'Rozpis úklidu'!L49","v":"Úklidová činnost č. 5"},{"$f":"'Rozpis úklidu'!P49*F32","v":0},0,{"$f":"IF(F32<B32,(B32-F32)*('Rozpis úklidu'!P49)*2,0)","v":0}]
[{"$f":"CONCATENATE('Rozpis úklidu'!A53,\" (\",CEILING('Rozpis úklidu'!D53/('Rozpis úklidu'!I53-'Rozpis úklidu'!H53+1)*'Rozpis úklidu'!G53,1),\")\")","v":"hotelový dvolůžkový, po odjezdu (2)"},0,{"$f":"IF('Rozpis úklidu'!N53=0,'Rozpis úklidu'!M53*B33/60,'Rozpis úklidu'!N53*B33/60)","v":0},{"$f":"'Rozpis úklidu'!L53","v":"Úklidová činnost č. 8"},{"$f":"'Rozpis úklidu'!P53*F33","v":0},0,{"$f":"IF(F33<B33,(B33-F33)*('Rozpis úklidu'!P53)*2,0)","v":0}]
[{"$f":"CONCATENATE('Rozpis úklidu'!A54,\" (\",CEILING('Rozpis úklidu'!D54/('Rozpis úklidu'!I54-'Rozpis úklidu'!H54+1)*'Rozpis úklidu'!G54,1),\")\")","v":"hotelový dvolůžkový, průběžně (1)"},0,{"$f":"IF('Rozpis úklidu'!N54=0,'Rozpis úklidu'!M54*B34/60,'Rozpis úklidu'!N54*B34/60)","v":0},{"$f":"'Rozpis úklidu'!L54","v":"Úklidová činnost č. 9"},{"$f":"'Rozpis úklidu'!P54*F34","v":0},0,{"$f":"IF(F34<B34,(B34-F34)*('Rozpis úklidu'!P54)*2,0)","v":0}]
[null,"celkem hodin/den",{"$f":"SUM(C17:C34)/5","v":2.0183333333333335},"K FAKTURACI CELKEM:",{"$f":"SUM(E17:E34)","v":0},null,{"$f":"SUM(G17:G34)","v":0}]
["Podpis vedoucí směny:",null,null,"Podpis zástupce vedení koleje:"]
[]
["Karta úklidu",null,null,{"$f":"'Rozpis úklidu'!$A$1","v":"kolej: Vltava, VŠE"}]
["MĚSÍČNÍ ÚKLID                 MĚSÍC:",{"$f":"MONTH(D39)","v":2},null,{"$f":"NOW()","v":"2020-02-21T12:38:39.410"}]
[{"$f":"'Rozpis úklidu'!$A$3","v":"Úklidová jednotka"},{"$f":"'Rozpis úklidu'!$D$3","v":"počet\núklidových jednotek"},"Doba úklidu\n[hod.]",{"$f":"'Rozpis úklidu'!$L$3","v":"Popis činnosti"},{"$f":"'Rozpis úklidu'!$Q$3","v":"cena celkem za všechny úklidové jednotky \n(prac. dny)\n[Kč]"},"Správně\nuklizené\njednotky","Smluvní pokuta\n[Kč]","Poznámka"]
[{"$f":"CONCATENATE('Rozpis úklidu'!A60,\" / \",'Rozpis úklidu'!F60)","v":"skleněné plochy na chodbách / měsíčně"},{"$f":"'Rozpis úklidu'!E60","v":125},{"$f":"IF('Rozpis úklidu'!N60=0,'Rozpis úklidu'!M60*B41/60,'Rozpis úklidu'!N60*B41/60)","v":10.416666666666666},{"$f":"'Rozpis úklidu'!L60","v":"umýt, vyleštit"},{"$f":"'Rozpis úklidu'!P60*F41","v":0},{"$f":"B41","v":125},{"$f":"IF(F41<B41,(B41-F41)*('Rozpis úklidu'!P60)*2,0)","v":0}]
[{"$f":"CONCATENATE('Rozpis úklidu'!A19,\" / \",'Rozpis úklidu'!F19,\" (\",'Rozpis úklidu'!D19,\")\")","v":"023 sklad / sezonně (1)"},0,{"$f":"IF('Rozpis úklidu'!N19=0,'Rozpis úklidu'!M19*B42/60,'Rozpis úklidu'!N19*B42/60)","v":0},{"$f":"'Rozpis úklidu'!L19","v":"Úklidová činnost č. 3"},{"$f":"'Rozpis úklidu'!P19*F42","v":0},{"$f":"B42","v":0},{"$f":"IF(F42<B42,(B42-F42)*('Rozpis úklidu'!P61)*2,0)","v":0}]
[{"$f":"CONCATENATE('Rozpis úklidu'!A20,\" / \",'Rozpis úklidu'!F20,\" (\",'Rozpis úklidu'!D20,\")\")","v":"024 sklad -  nábytek / sezonně (1)"},0,{"$f":"IF('Rozpis úklidu'!N20=0,'Rozpis úklidu'!M20*B43/60,'Rozpis úklidu'!N20*B43/60)","v":0},{"$f":"'Rozpis úklidu'!L20","v":"Úklidová činnost č. 3"},{"$f":"'Rozpis úklidu'!P20*F43","v":0},0,{"$f":"IF(F43<B43,(B43-F43)*('Rozpis úklidu'!P62)*2,0)","v":0}]
[{"$f":"CONCATENATE('Rozpis úklidu'!A56,\" / \",'Rozpis úklidu'!F56,\" (\",'Rozpis úklidu'!D56,\")\")","v":"okna velká / ročně (500)"},0,{"$f":"IF('Rozpis úklidu'!N56=0,'Rozpis úklidu'!M56*B44/60,'Rozpis úklidu'!N56*B44/60)","v":0},{"$f":"'Rozpis úklidu'!L56","v":"Úklidová činnost č. 12"},{"$f":"'Rozpis úklidu'!P56*F44","v":0},0,{"$f":"IF(F44<B44,(B44-F44)*('Rozpis úklidu'!P56)*2,0)","v":0}]
[{"$f":"CONCATENATE('Rozpis úklidu'!A57,\" / \",'Rozpis úklidu'!F57,\" (\",'Rozpis úklidu'!D57,\")\")","v":"balkonové dveře / ročně (52)"},0,{"$f":"IF('Rozpis úklidu'!N57=0,'Rozpis úklidu'!M57*B45/60,'Rozpis úklidu'!N57*B45/60)","v":0},{"$f":"'Rozpis úklidu'!L57","v":"Úklidová činnost č. 12"},{"$f":"'Rozpis úklidu'!P57*F45","v":0},{"$f":"B45","v":0},{"$f":"IF(F45<B45,(B45-F45)*('Rozpis úklidu'!P57)*2,0)","v":0}]
[{"$f":"CONCATENATE('Rozpis úklidu'!A58,\" / \",'Rozpis úklidu'!F58,\" (\",'Rozpis úklidu'!D58,\")\")","v":"malé okno / ročně (65)"},0,{"$f":"IF('Rozpis úklidu'!N58=0,'Rozpis úklidu'!M58*B46/60,'Rozpis úklidu'!N58*B46/60)","v":0},{"$f":"'Rozpis úklidu'!L58","v":"Úklidová činnost č. 12"},{"$f":"'Rozpis úklidu'!P58*F46","v":0},0,{"$f":"IF(F46<B46,(B46-F46)*('Rozpis úklidu'!P58)*2,0)","v":0}]
[{"$f":"CONCATENATE('Rozpis úklidu'!A59,\" / \",'Rozpis úklidu'!F59,\" (\",'Rozpis úklidu'!D59,\")\")","v":"čistění matrací / ročně (532)"},0,{"$f":"IF('Rozpis úklidu'!N59=0,'Rozpis úklidu'!M59*B47/60,'Rozpis úklidu'!N59*B47/60)","v":0},{"$f":"'Rozpis úklidu'!L59","v":"Úklidová činnost č. 13"},{"$f":"'Rozpis úklidu'!P59*F47","v":0},0,{"$f":"IF(F47<B47,(B47-F47)*('Rozpis úklidu'!P59)*2,0)","v":0}]
[null,"celkem hodin/den",{"$f":"SUM(C41:C47)/21","v":0.49603174603174599},"K FAKTURACI CELKEM:",{"$f":"SUM(E41:E47)","v":0},null,{"$f":"SUM(G41:G47)","v":0}]
["Podpis vedoucí směny:",null,null,"Podpis zástupce vedení koleje:"]
[]
["Karta úklidu",null,null,{"$f":"'Rozpis úklidu'!$A$1","v":"kolej: Vltava, VŠE"}]
["SEZONNÍ ÚKLID                 MĚSÍC:",{"$f":"MONTH(D52)","v":2},null,{"$f":"(NOW())","v":"2020-02-21T12:38:39.410"}]
[{"$f":"'Rozpis úklidu'!$A$3","v":"Úklidová jednotka"},{"$f":"'Rozpis úklidu'!$D$3","v":"počet\núklidových jednotek"},"Doba úklidu\n[hod.]",{"$f":"'Rozpis úklidu'!$L$3","v":"Popis činnosti"},{"$f":"'Rozpis úklidu'!$Q$3","v":"cena celkem za všechny úklidové jednotky \n(prac. dny)\n[Kč]"},"Správně\nuklizené\njednotky","Smluvní pokuta\n[Kč]","Poznámka"]
[{"$f":"CONCATENATE('Rozpis úklidu'!A39,\" / \",'Rozpis úklidu'!F39,\" (\",'Rozpis úklidu'!D39,\")\")","v":"pokoj generální úklid / sezonně (266)"},0,{"$f":"IF('Rozpis úklidu'!N39=0,'Rozpis úklidu'!M39*B54/60,'Rozpis úklidu'!N39*B54/60)","v":0},{"$f":"'Rozpis úklidu'!L39","v":"Úklidová činnost č. 6"},{"$f":"IF(B54>0,'Rozpis úklidu'!P39*F54,0)","v":0},{"$f":"B54","v":0},{"$f":"IF(F54<B54,(B54-F54)*'Rozpis úklidu'!P39*2,0)","v":0}]
[{"$f":"CONCATENATE('Rozpis úklidu'!A42,\" / \",'Rozpis úklidu'!F42,\" (\",'Rozpis úklidu'!D42,\")\")","v":"předsíň - generální úklid / sezonně (133)"},0,{"$f":"IF('Rozpis úklidu'!N42=0,'Rozpis úklidu'!M42*B55/60,'Rozpis úklidu'!N42*B55/60)","v":0},{"$f":"'Rozpis úklidu'!L42","v":"Úklidová činnost č. 7"},{"$f":"IF(B55>0,'Rozpis úklidu'!P42*F55,0)","v":0},0,{"$f":"IF(F55<B55,(B55-F55)*'Rozpis úklidu'!P42*2,0)","v":0}]
[{"$f":"CONCATENATE('Rozpis úklidu'!A45,\" / \",'Rozpis úklidu'!F45,\" (\",'Rozpis úklidu'!D45,\")\")","v":"wc - generální úklid / sezonně (133)"},0,{"$f":"IF('Rozpis úklidu'!N45=0,'Rozpis úklidu'!M45*B56/60,'Rozpis úklidu'!N45*B56/60)","v":0},{"$f":"'Rozpis úklidu'!L45","v":"Úklidová činnost č. 14"},{"$f":"IF(B56>0,'Rozpis úklidu'!P45*F56,0)","v":0},0,{"$f":"IF(F56<B56,(B56-F56)*'Rozpis úklidu'!P45*2,0)","v":0}]
[{"$f":"CONCATENATE('Rozpis úklidu'!A48,\" / \",'Rozpis úklidu'!F48,\" (\",'Rozpis úklidu'!D48,\")\")","v":"koupelna se sprchou -generální úklid / sezonně (133)"},0,{"$f":"IF('Rozpis úklidu'!N48=0,'Rozpis úklidu'!M48*B57/60,'Rozpis úklidu'!N48*B57/60)","v":0},{"$f":"'Rozpis úklidu'!L48","v":"Úklidová činnost č. 15"},{"$f":"IF(B57>0,'Rozpis úklidu'!P48*F57,0)","v":0},0,{"$f":"IF(F57<B57,(B57-F57)*'Rozpis úklidu'!P48*2,0)","v":0}]
[{"$f":"CONCATENATE('Rozpis úklidu'!A51,\" / \",'Rozpis úklidu'!F51,\" (\",'Rozpis úklidu'!D51,\")\")","v":"kuchyňka - generální úklid / sezonně (133)"},0,{"$f":"IF('Rozpis úklidu'!N51=0,'Rozpis úklidu'!M51*B58/60,'Rozpis úklidu'!N51*B58/60)","v":0},{"$f":"'Rozpis úklidu'!L51","v":"Úklidová činnost č. 5"},{"$f":"IF(B58>0,'Rozpis úklidu'!P51*F58,0)","v":0},0,{"$f":"IF(F58<B58,(B58-F58)*'Rozpis úklidu'!P51*2,0)","v":0}]
[{"$f":"CONCATENATE('Rozpis úklidu'!A63,\" / \",'Rozpis úklidu'!F63,\" (\",'Rozpis úklidu'!D63,\")\")","v":"kontrola stavu úklidu při odjezdu / sezonně (266)"},0,{"$f":"IF('Rozpis úklidu'!N63=0,'Rozpis úklidu'!M63*B59/60,'Rozpis úklidu'!N63*B59/60)","v":0},{"$f":"'Rozpis úklidu'!L63","v":"Úklidová činnost č. 10"},{"$f":"IF(B59>0,'Rozpis úklidu'!P63*F59,0)","v":0},0,{"$f":"IF(F59<B59,(B59-F59)*'Rozpis úklidu'!P63*2,0)","v":0}]
[null,"celkem hodin",{"$f":"SUM(C54:C59)","v":0},"K FAKTURACI CELKEM:",{"$f":"SUM(E54:E59)","v":0},null,{"$f":"SUM(G54:G59)","v":0}]
["Podpis vedoucí směny:",null,null,"Podpis zástupce vedení koleje:"]
[]
["Karta úklidu",null,null,{"$f":"'Rozpis úklidu'!$A$1","v":"kolej: Vltava, VŠE"}]
["ÚKLID O VÍKENDU                 DNE:",{"$f":"(NOW())","v":"2020-02-21T12:38:39.410"}]
[{"$f":"'Rozpis úklidu'!$A$3","v":"Úklidová jednotka"},{"$f":"'Rozpis úklidu'!$D$3","v":"počet\núklidových jednotek"},"Doba úklidu\n[hod.]",{"$f":"'Rozpis úklidu'!$L$3","v":"Popis činnosti"},"cena celkem za všechny úklidové jednotky \n(VÍKEND)\n[Kč]","Správně\nuklizené\njednotky","Smluvní pokuta\n[Kč]","Poznámka"]
[{"$f":"CONCATENATE('Rozpis úklidu'!A53,\" / \",'Rozpis úklidu'!F53,\" (\",'Rozpis úklidu'!D53,\")\")","v":"hotelový dvolůžkový, po odjezdu / týdně (1)"},0,{"$f":"IF('Rozpis úklidu'!N53=0,'Rozpis úklidu'!M53*B66/60,'Rozpis úklidu'!N53*B66/60)","v":0},{"$f":"'Rozpis úklidu'!L53","v":"Úklidová činnost č. 8"},{"$f":"IF(B66>0,'Rozpis úklidu'!P53*F66*'Základní údaje'!$C$11,0)","v":0},{"$f":"B66","v":0},{"$f":"IF(F66<B66,(B66-F66)*'Rozpis úklidu'!P53*2*'Základní údaje'!$C$11,0)","v":0}]
[{"$f":"CONCATENATE('Rozpis úklidu'!A54,\" / \",'Rozpis úklidu'!F54,\" (\",'Rozpis úklidu'!D54,\")\")","v":"hotelový dvolůžkový, průběžně / týdně (1)"},0,{"$f":"IF('Rozpis úklidu'!N54=0,'Rozpis úklidu'!M54*B67/60,'Rozpis úklidu'!N54*B67/60)","v":0},{"$f":"'Rozpis úklidu'!L54","v":"Úklidová činnost č. 9"},{"$f":"IF(B67>0,'Rozpis úklidu'!P54*F67*'Základní údaje'!$C$11,0)","v":0},0,{"$f":"IF(F67<B67,(B67-F67)*'Rozpis úklidu'!P54*2*'Základní údaje'!$C$11,0)","v":0}]
[null,"celkem hodin/víkend",{"$f":"SUM(C66:C67)","v":0},"K FAKTURACI CELKEM:",{"$f":"SUM(E66:E67)","v":0},null,{"$f":"SUM(G66:G67)","v":0}]
["Podpis vedoucí směny:",null,null,"Podpis zástupce vedení koleje:"]

{"sheet":"Činnosti úklidu","index":3,"n_rows":35,"n_cols":2,"rows_kept":35,"cut":false,"hidden":false,"merged":[]}
[null,"Úklidová činnost"]
[null,"Úklidová činnost probíhá v čase od 07:00 hod. do 15.00 hod. v jednosměnném provozu v pětidenním pracovním týdnu, úklid hotelových pokojů musí být dle potřeby zajištěn i o víkendu. V době nastěhování a vystěhování studentů koncem letního semestru a začátkem zimního semestru stanovuje dobu pro úklid podle aktuálních potřeb vedoucí/zástupce vedoucí koleje a to včetně úklidu o víkendu. Při úklidu je potřeba používat úklidové, čistící a desinfekční prostředky vhodné pro daný předmět úklidu a dodržovat návody na použití příslušných úklidových, čistících a desinfekčních prostředků a bezpečnostní a hygienická pravidla"]
["Definice pojmů:"]
["Zametání","pomocí vhodného smetáku zamést dané podlahové plochy."]
["Vytírání ","pomocí mopu za použití vody a odpovídajícího saponátu vytřít dané podlahové plochy."]
["Mytí ","pomocí hadru, utěrky nebo houbičky, za použití vody a odpovídajícího saponátu, umýt plochy nábytku, dveří, spotřebičů, keramických a jiných obkladů, topení apod."]
["Čištění ","důkladné čištění, zvláště skvrn, za pomocí odpovídajících čisticích prostředků, ploch nábytku, dveří, spotřebičů, keramických a jiných obkladů, topení apod."]
["Desinfekce ","po umytí nebo vyčištění daných ploch, podlah, spotřebičů aj. použít podle návodu odpovídající desinfekční prostředek."]
["Leštění ","leštění všech skleněných a zrcadlových ploch za použití odpovídajícího přípravku na mytí a leštění skel."]
["Luxování ","čištění podlah za použití vysavače."]
["Strojové čištění ","se provádí za použití čistícího stroje na vodní nebo parní bázi (strojové čištění postelí, matrací, koberců apod.)."]
["Stírání prachu","setření prachu vhodnou utěrkou za použití odpovídajícího přípravku na odstranění prachu, odstranění pavučin."]
["Úklid odpadů ","řádné uvolnění, umytí, vyčištění a vydesinfikování odpadů na soc. zařízeních, WC, umývárnách a sprchových koutech za použití odpovídajících přípravků."]
["Mimořádný úklid ","úklid znečištěného WC (mimo mísu), umývárny nebo společných prostor zvratky nebo exkrementy (uklízečka vyrozumí vedoucí/zástupce vedoucí koleje)."]
["Mytí oken ","umytí parapetů na mokro za použití odpovídajícího saponátu, umytí rámů oken na mokro za použití odpovídajícího saponátu, umytí a vyleštění oken odpovídajícím přípravkem na mytí a leštění oken."]
["Zalévání květin ","zalití květin čistou odstátou vodou v přiměřeném množství s ohledem na druh rostliny. Podle potřeby použít odpovídající hnojivo v dávkování podle návodu k použití."]
["Vynášení a likvidace odpadu","vynesení odpadu ze všech odpadních nádob (i z prostoru okolo těchto nádob), a ze skartovaček, umytí odpadních nádob a doplnění pytlů na odpadky do odpadních nádob. Odpad dle možnosti vhodným způsobem třídit."]
["Doplňování hotelových potřeb ","v hotelovém provozu doplnit toaletní papír do zásobníků doplnit ručníky a hotelové mýdlo."]
[]
["Číslo typové činnosti","Popis typových pracovních činností:"]
["1.","Úklidem společných prostor, podlah chodeb, schodišť a vestibulu se rozumí:\nzamést a vytřít podlahy, odstranit našlapané žvýkačky a jiné nečistoty, vyluxovat podlahy kryté kobercem. Umýt parapety, zábradlí a hasicí přístroje umístěné na chodbách, vyleštit skleněné plochy na chodbách a ve vestibulech, setřít prach a pavučiny. Sepsat a nahlásit vedení koleje všechny závady a škody."]
["2.","Úklidem balkonů se rozumí: \nzamést a vytřít podlahy, odstranit našlapané žvýkačky a jiné nečistoty, umýt parapety a zábradlí. Odstranit pavučiny. Vynést odpady a popř. i vysypat popelníky."]
["3.","Úklidem společenských, (studoven, kluboven apod.) zájmových (posiloven, tělocvičen apod.) a zasedacích místností, kanceláří, skladů, šaten a výtahů se rozumí:\nzamést a vytřít podlahy, podlahy pokryté kobercem vyluxovat, setřít prach a pavučiny ze všech dosažitelných a volně přístupných míst a zařízení místností (topení, cvičební nářadí apod.), umýt a vyčistit skvrny kolem klik, dveří, vypínačů a světel. Srovnat nábytek a jiné vybavení místností. Srovnat nebo dověsit záclony a závěsy. Vyleštit zrcadla. Vynést odpad. Sepsat a nahlásit vedení koleje všechny závady a škody."]
["4.","Úklidem prádelen se rozumí:\nzamést a vytřít podlahy, setřít prach a pavučiny ze všech dosažitelných a volně přístupných míst a zařízení místností (praček, topení, apod.). Vyčistit filtry praček, vyčistit zásobníky na prášek. Umýt a vyčistit dveře, kliky, vypínače a světla. Srovnat nebo dověsit záclony a závěsy. Vyleštit zrcadla. Vynést odpad. Sepsat a nahlásit vedení koleje všechny závady a škody."]
["5.","Úklidem kuchyněk se rozumí:\numýt, vyčistit a vydesinfikovat sporák, vařič, mikrovlnnou troubu, digestoř, pracovní desky a zařízení místnosti kuchyňky. Umýt, vyčistit a vydesinfikovat obklady. Pokud je kuchyňka vybavena nádobím umýt nádobí. Odmrazit a vyčistit lednici. Odstranit všechny prošlé nebo kazící se potraviny. Zamést a vytřít podlahy. Vynést odpad. Setřít prach a pavučiny. Sepsat a nahlásit vedení koleje všechny závady a škody."]
["6.","Generálním úklidem pokojů po odchodu studentů se rozumí:\numýt nábytek z venku (postele, stoly, židle, police, skříně apod.) i zevnitř (skříně, šuplíky, peřináče, postele apod.) a vyčistit od skvrn. Vyleštit zrcadla a okna. Vyluxovat/strojově vyčistit matrace postelí. Setřít prach a pavučiny (včetně žaluzií). Umýt a vyčistit veškeré obložení, lišty, obrazy, dveře, kliky, rámy oken, parapety, vypínače, zásuvky, topení, světla, lampičky apod. Umýt ledničku zevnitř i zvenku. Zamést a vytřít podlahy, podlahy kryté kobercem vyluxovat, a to i pod a za postelí, křesly a závěsy. Srovnat nebo dověsit záclony a závěsy, srovnat nábytek a jiné vybavení pokoje. Vynést odpad, umýt, otřít a vyleštit odpadkový koš. Zlikvidovat případné komáry a mouchy. Vyvětrat a popř. i navonět. Sepsat a nahlásit vedení koleje všechny závady a škody. Případné nalezené věci po ubytovaných předat vedení koleje."]
["7.","Úklidem předsíní buněk se rozumí:\núklid sociálního zařízení podle bodu 14. a 15. úklid kuchyňky podle bodu 5. Zamést a vytřít podlahy. Umýt a vyčistit pracovní plochy a nábytek. Setřít prach a pavučiny. Vynést odpad. Sepsat a nahlásit vedení koleje všechny závady a škody."]
["8.","Úklidem hotelových pokojů po vystěhování se rozumí:\numýt nábytek z venku (postele, stoly, židle, police, skříně apod.) i zevnitř (skříně, šuplíky, peřináče, postele apod.) a vyčistit od skvrn. Vyleštit zrcadla a okna. Převléct a ustlat postele, vyluxovat/strojově vyčistit matrace postelí. Setřít prach a pavučiny (včetně žaluzií). Umýt a vyčistit veškeré obložení, lišty, obrazy, dveře, kliky, rámy oken, parapety, vypínače, zásuvky, televizi, topení, světla, lampičky apod. Umýt nádobí. Umýt ledničku zevnitř i zvenku. Zamést a vytřít podlahy, podlahy kryté kobercem vyluxovat, a to i pod a za postelí, křesly a závěsy. Srovnat nebo dověsit záclony a závěsy, srovnat nábytek a jiné vybavení pokoje. Vynést odpad, umýt, otřít a vyleštit odpadkový koš. Zlikvidovat případné komáry a mouchy. Doplnit hotelové potřeby. Vyvětrat a popř. i navonět. Předat složené použité prádlo a ručníky skladní. Sepsat a nahlásit vedení koleje všechny závady a škody. Případné nalezené věci po hostech předat vedení koleje."]
["9.","Úklidem hotelových pokojů v průběhu ubytování se rozumí:\nustlání postelí, popř. výměna ložního prádla každý 4. den pobytu, výměna osušek a ručníků, doplnění toaletního papíru, vynesení odpadků, umytí koupelny (sprchový kout, WC, umyvadlo), vytření podlahy."]
["10.","Přebráním uklizeného pokoje po studentech se rozumí:\npodle bodu 6. a 7. zkontrolovat úklid provedený studenty. Přebrat klíče od pokoje. Podepsat potvrzení o řádně provedeném úklidu a odevzdání klíčů. Sepsat a nahlásit vedení koleje všechny závady a škody. V případě nutnosti upozornit studenty na nedostatky v úklidu s tím, že je musí ve stanovené době odstranit, po té provést novou kontrolu úklidu. V případě, že ani napodruhé nebude pokoj řádně uklizen nahlásit tuto skutečnost vedení koleje."]
["11.","Úklidem výtahu se rozumí:\nzametení a vytření podlahy, vyčištění dveřních drážek, mytí stěn, mytí světel, jsou li instalována vyleštění zrcadel."]
["12.","Mytím oken se rozumí:\nmytí a leštění skel, mytí rámů, mytí parapetu, jsou-li instalovány setření žaluzií."]
["13.","Čištěním matrací:\nvyčištění matrací parním strojem."]
["14.","Úklidem WC se rozumí:\numýt, vyčistit a vydesinfikovat místnost WC, umýt záchodovou mísu zevnitř i zvenku umýt nohu a trubku za WC, umýt prkýnko a nádobu na splachovací vodu, popř. umýt pisoáry, umyvadla, baterie, obklady, odpady, podlahy a dveře. Otřít držák na toaletní papír. Umýt dlaždičky a silikon od plísně. Vylít vodu a otřít pouzdro na WC štětku. Vyleštit zrcadla. Vynést odpad. Setřít prach a pavučiny. Vždy za použití odpovídajícího mycího/čistícího přípravku."]
["15.","Úklidem koupelen a sprch se rozumí:\numýt, vyčistit a vydesinfikovat umyvadlo zevnitř i zvenku včetně trubek pod ním, baterie, sprchový kout, obklady, poličku nad umyvadlem i ve sprchovém koutě, odpady, podlahy a dveře. Umýt stěny sprchového koutu, gumové těsnění popř. závěs sprchového koutu. Odstranit rez a vodní kámen. Vynést odpad. Vyleštit zrcadlo, poličku, sprchu a držák na sprchu. Umýt dlaždičky a silikon od plísně. Vynést odpad. Setřít prach a pavučiny. Vždy za použití odpovídajícího mycího/čistícího přípravku"]